fUSD/lending_fUSD_20250814
["ID","MTS","AMOUNT","RATE_DAILY","PERIOD"]
[379196409,1755183055993,-2804.93,0.00027397,2]
[379196410,1755183056003,-400.0,0.00027397,2]
[379196411,1755183056012,-560.0,0.00027397,2]
[379196412,1755183056021,-1519.57,0.00027397,2]
[379196413,1755183056031,-400.0,0.00027397,2]
[379196414,1755183056040,-2880.26152003,0.00027397,2]
[379196415,1755183056053,-205.84847997,0.00027397,2]
[379196416,1755183056063,-400.0,0.00027397,2]
[379196417,1755183056073,-1404.32,0.00027397,2]
[379196418,1755183056082,-501.63,0.00027397,2]
[379196419,1755183056091,-3323.39256303,0.00027397,2]
[379196420,1755183056195,-2778.23743697,0.00027397,2]
[379196421,1755183056205,-987.91,0.00027397,2]
[379196422,1755183056214,-2193.74856303,0.00027397,2]
[379196423,1755183056490,-150.0,0.00025118,2]
[379196424,1755183056500,-150.0,0.00025961,2]
[379196425,1755183056509,-150.0,0.00027054,2]
[379196426,1755183056518,-2568.88143697,0.00027397,2]
[379196427,1755183056529,-400.0,0.00027397,2]
[379196428,1755183056539,-3337.19,0.00027397,2]
[379196429,1755183056550,-440.14,0.00027397,2]
[379196430,1755183056560,-400.0,0.00027397,2]
[379196431,1755183056570,-180.37598937,0.00027397,2]
[379196432,1755183056584,-219.62401063,0.00027397,2]
[379196433,1755183056594,-544.48961636,0.00027397,2]
[379196434,1755183056605,-1277.94038364,0.00027397,2]
[379196435,1755183056614,-1117.13,0.00027397,2]
[379196436,1755183056624,-400.0,0.00027397,2]
[379196437,1755183056634,-151.0,0.00027397,7]
[379196438,1755183056644,-600.78,0.00027397,2]
[379196439,1755183056654,-489.54893564,0.00027397,2]
[379196440,1755183056664,-400.0,0.00027397,2]
[379196441,1755183056674,-400.0,0.00027397,2]
[379196442,1755183056683,-400.0,0.00027397,2]
[379196443,1755183056693,-400.0,0.00027397,2]
[379196444,1755183056702,-400.0,0.00027397,2]
[379196445,1755183056711,-1690.89,0.00027397,2]
[379196446,1755183056721,-400.0,0.00027397,2]
[379196447,1755183056734,-259.317632,0.00027397,7]
[379196448,1755183056744,-400.0,0.00027397,2]
[379196449,1755183056753,-2881.29,0.00027397,2]
[379196450,1755183056762,-434.47,0.00027397,2]
[379196451,1755183056772,-151.0,0.00027397,7]
[379196452,1755183056782,-565.68,0.00027397,2]
[379196453,1755183056792,-400.0,0.00027397,2]
[379196454,1755183056802,-3017.11,0.00027397,2]
[379196455,1755183056811,-414.11,0.00027397,2]
[379196456,1755183056822,-1725.18,0.00027397,2]
[379196457,1755183056832,-726.36,0.00027397,2]
[379196458,1755183056841,-400.0,0.00027397,2]
[379196459,1755183056851,-400.0,0.00027397,2]
[379196460,1755183056861,-400.0,0.00027397,2]
[379196461,1755183056874,-259.317632,0.00027397,7]
[379196462,1755183056884,-1151.3066199,0.00027397,2]
[379196463,1755183087522,-300.0,0.00019324,2]
[379196468,1755183182154,-500.0,0.00019124,2]
[379196469,1755183182182,-500.0,0.00019225,2]
[379196470,1755183182296,-110.19,0.00019289,2]
[379196472,1755183285938,218.76,0.00013699,2]
[379196473,1755183289985,150.0,0.0002,3]
[379196476,1755183310062,623.3709378,0.00025999,30]
[379196481,1755183527593,872.27,0.00024685,30]
[379196488,1755183632719,-250.0,0.00019293,2]
[379196489,1755183633249,-1000.0,0.00019293,2]
[379196490,1755183633273,-500.0,0.00019293,2]
[379196491,1755183633299,-1000.0,0.00019789,2]
[379196492,1755183633325,-500.0,0.00019789,2]
[379196493,1755183633350,-218.76,0.00020187,2]
[379196494,1755183633375,-2579.550584,0.00020951,2]
[379196495,1755183633401,-300.95,0.00021056,2]
[379196496,1755183633426,-303.69,0.0002106,2]
[379196497,1755183633452,-1200.0,0.00021112,2]
[379196498,1755183633479,-300.0,0.00021112,2]
[379196499,1755183633513,-5155.05390918,0.00021113,2]
[379196500,1755183633537,-500.0,0.00021202,2]
[379196501,1755183633563,-250.0,0.00021202,2]
[379196502,1755183633588,-1000.0,0.00021202,2]
[379196503,1755183633613,-300.0,0.00021202,2]
[379196504,1755183633638,-500.0,0.00021202,2]
[379196505,1755183633662,-227.0,0.00021202,2]
[379196506,1755183633687,-500.0,0.00021287,2]
[379196507,1755183633716,-151.0,0.00021287,2]
[379196508,1755183633741,-151.0,0.00021287,2]
[379196509,1755183633767,-151.0,0.00021287,2]
[379196510,1755183633794,-151.0,0.00021287,2]
[379196511,1755183633822,-151.0,0.00021287,2]
[379196512,1755183633848,-151.0,0.00021287,2]
[379196513,1755183633876,-151.0,0.00021287,2]
[379196514,1755183633903,-241.87156185,0.00021287,2]
[379196515,1755183633926,-301.00551465,0.00021287,2]
[379196516,1755183633950,-327.90903015,0.00021298,2]
[379196517,1755183633974,-8187.20940017,0.000213,2]
[379196521,1755183704885,-500.0,0.00019174,2]
[379196522,1755183704911,-300.0,0.00021201,2]
[379196523,1755183722807,300.0,0.0002095,2]
[379196524,1755183723844,500.0,0.00019541,2]
[379196525,1755183723993,500.0,0.00020255,2]
[379196526,1755183757102,-500.0,0.00021222,2]
[379196527,1755183757126,-300.62,0.00021224,2]
[379196528,1755183757149,-305.57,0.00021231,2]
[379196529,1755183757173,-302.57,0.00021231,2]
[379196530,1755183757196,-304.57,0.00021231,2]
[379196531,1755183757219,-801.53080246,0.000213,2]
[379196532,1755183769541,-1713.33,0.000213,2]
[379196533,1755183769565,-215.71673853,0.000213,2]
[379196534,1755183769590,-151.0,0.000213,2]
[379196535,1755183771349,179.76394878,0.000213,2]
[379196536,1755183772450,151.0,0.000213,2]
[379196537,1755183777114,104.05011515,0.00021224,2]
[379196541,1755183786238,-201.46988485,0.00021224,2]
[379196542,1755183798692,302.48,0.000213,2]
[379196547,1755183906905,176.0,0.00025062,120]
[379196561,1755184216134,-176.0,0.00026315,120]
[379196562,1755184216173,-161.63,0.00027047,120]
[379196563,1755184216206,-547.0,0.00027367,120]
[379196564,1755184216237,-547.0,0.00027377,120]
[379196565,1755184216265,-150.5,0.00027377,120]
[379196566,1755184216293,-547.0,0.00027387,120]
[379196567,1755184216321,-150.5,0.00027387,120]
[379196568,1755184216460,-150.0,0.00027397,120]
[379196569,1755184216615,-547.0,0.0002764,120]
[379196570,1755184216647,-547.0,0.0002765,120]
[379196571,1755184216677,-547.0,0.0002766,120]
[379196572,1755184216916,-547.0,0.0002792,120]
[379196573,1755184216946,-547.0,0.0002793,120]
[379196574,1755184217141,-548.0,0.0002819,120]
[379196575,1755184217171,-177.0,0.00028195,120]
[379196576,1755184217200,-547.0,0.000282,120]
[379196577,1755184217229,-176.0,0.00028201,120]
[379196578,1755184217458,-178.0,0.00028522,120]
[379196579,1755184217982,-578.53,0.00029526,120]
[379196580,1755184218066,-177.0,0.00029605,120]
[379196581,1755184218096,-176.0,0.00029611,120]
[379196582,1755184218229,-1023.79921659,0.000299,120]
[379196583,1755184218314,-554913.63460086,0.0003,120]
[379196584,1755184218343,-384.5384391,0.0003,120]
[379196585,1755184218380,-1499.99999908,0.0003,120]
[379196586,1755184218411,-1092.45458532,0.0003,120]
[379196587,1755184218440,-652.69135369,0.0003,120]
[379196588,1755184218469,-736.00660795,0.0003,120]
[379196589,1755184218497,-345.0,0.0003,120]
[379196590,1755184218525,-300.0,0.0003,120]
[379196591,1755184218553,-211.86673127,0.0003,120]
[379196592,1755184218584,-161.63,0.00030052,120]
[379196593,1755184218624,-1800.0,0.0003013,120]
[379196594,1755184218668,-248.8056417,0.0003013,120]
[379196595,1755184218697,-661.43083947,0.0003013,120]
[379196596,1755184218725,-451.24249369,0.0003013,120]
[379196597,1755184218802,-192.1745125,0.00030137,120]
[379196619,1755184228801,211.86673127,0.0003,120]
[379196622,1755184231557,211.86673127,0.0003,120]
[379196643,1755184232788,-304.47,0.00021239,2]
[379196644,1755184232798,-135.64968,0.00021239,5]
[379196645,1755184232821,-6786.83184709,0.00021239,5]
[379196646,1755184232832,-301.53,0.00021239,2]
[379196647,1755184232843,-305.68,0.00021241,2]
[379196648,1755184232854,-1151.0,0.00021248,2]
[379196649,1755184232864,-303.42,0.00021249,2]
[379196651,1755184232874,-300.49,0.00021251,2]
[379196653,1755184232885,-150.88,0.000213,2]
[379196655,1755184232895,-151.0,0.000213,2]
[379196656,1755184232912,-151.0,0.000213,2]
[379196657,1755184232922,-305.26,0.000213,2]
[379196658,1755184232932,-300.19,0.00021422,2]
[379196660,1755184232942,-500.0,0.0002165,2]
[379196661,1755184232952,-357.0,0.00022,2]
[379196662,1755184232962,-222.0,0.00022,2]
[379196663,1755184232972,-357.0,0.00022192,7]
[379196664,1755184232981,-261.71815293,0.00022466,7]
[379196665,1755184232998,-95.28184707,0.00022466,7]
[379196666,1755184233008,-357.0,0.0002274,7]
[379196667,1755184233018,-167.96754926,0.00023,2]
[379196668,1755184233031,-334.03245074,0.00023,2]
[379196669,1755184233040,-357.0,0.00023014,7]
[379196670,1755184233050,-357.0,0.00023014,7]
[379196671,1755184233060,-133.17904985,0.00023345,2]
[379196672,1755184233198,-423.25373417,0.00023345,2]
[379196673,1755184233212,-131.27682827,0.00023345,2]
[379196674,1755184233223,-500.0,0.00023363,2]
[379196675,1755184233234,-500.0,0.0002343,2]
[379196676,1755184233245,-502.0,0.00023613,2]
[379196677,1755184233256,-170.0,0.00023905,7]
[379196678,1755184233267,-4598.06,0.00023994,2]
[379196679,1755184233278,-557.2,0.00023998,2]
[379196680,1755184233290,-3000.0,0.00024,5]
[379196681,1755184233301,-772.47190443,0.00024,14]
[379196682,1755184233311,-161.63,0.00024041,2]
[379196683,1755184233321,-716.42,0.00024062,2]
[379196684,1755184233331,-250.0,0.00024134,2]
[379196685,1755184233342,-666.0,0.00024137,3]
[379196686,1755184233353,-200.0,0.00024137,2]
[379196687,1755184233363,-357.0,0.00024164,7]
[379196688,1755184233374,-357.0,0.00024164,7]
[379196689,1755184233694,-502.0,0.00024226,3]
[379196690,1755184233708,-200.0,0.00024321,2]
[379196691,1755184233719,-159.23,0.00024386,2]
[379196692,1755184233729,-3058.20912765,0.00024416,2]
[379196693,1755184233740,-533.83,0.00024455,2]
[379196694,1755184233750,-504.59,0.00024473,2]
[379196695,1755184233760,-150.0,0.00024564,2]
[379196696,1755184233770,-1000.0,0.00024601,2]
[379196697,1755184233780,-163.96,0.00024602,2]
[379196698,1755184233790,-2297.81,0.00024603,2]
[379196699,1755184233799,-150.0,0.00024656,2]
[379196700,1755184233810,-2000.0,0.00024658,15]
[379196701,1755184233820,-610.8150944,0.00024725,2]
[379196702,1755184233831,-271.78125327,0.00024756,2]
[379196703,1755184233841,-285.60066624,0.00024768,2]
[379196704,1755184233851,-167.22,0.00024773,2]
[379196705,1755184233861,-502.0,0.00024839,3]
[379196706,1755184233871,-334.96374435,0.00024881,2]
[379196707,1755184233881,-384.32682247,0.00024993,2]
[379196708,1755184233891,-1000.0,0.00025,25]
[379196709,1755184233900,-332.14,0.00025062,7]
[379196710,1755184233911,-433.68990058,0.00025105,2]
[379196711,1755184233920,-357.0,0.00025131,7]
[379196712,1755184233930,-500.0,0.00025205,2]
[379196713,1755184233940,-483.0529787,0.00025218,2]
[379196714,1755184233949,-500.0,0.00025222,2]
[379196715,1755184233959,-357.0,0.00025315,7]
[379196716,1755184233969,-532.41605681,0.0002533,2]
[379196717,1755184233980,-796.0,0.000254,2]
[379196718,1755184233990,-581.77913493,0.00025442,2]
[379196719,1755184234000,-502.0,0.00025452,4]
[379196720,1755184234010,-163.96,0.00025524,2]
[379196721,1755184234019,-631.14221304,0.00025555,2]
[379196722,1755184234030,-680.50529116,0.00025667,2]
[379196723,1755184234040,-729.86836928,0.00025779,2]
[379196724,1755184234051,-779.23144739,0.00025891,2]
[379196725,1755184234062,-1000.0,0.00026,26]
[379196726,1755184234072,-828.59452551,0.00026004,2]
[379196727,1755184234083,-159.23,0.00026012,2]
[379196728,1755184234093,-502.0,0.00026065,5]
[379196729,1755184234103,-300.0,0.0002607,2]
[379196730,1755184234113,-600.0,0.0002607,2]
[379196731,1755184234123,-293.59644855,0.0002607,2]
[379196732,1755184234133,-1000.0,0.0002607,2]
[379196733,1755184234143,-200.0,0.0002607,2]
[379196734,1755184234155,-1000.0,0.0002607,2]
[379196735,1755184234164,-200.0,0.0002607,2]
[379196736,1755184234174,-200.0,0.0002607,2]
[379196737,1755184234185,-160.0,0.0002607,2]
[379196738,1755184234194,-1000.0,0.0002607,2]
[379196739,1755184234204,-200.0,0.0002607,2]
[379196740,1755184234215,-1000.0,0.0002607,2]
[379196741,1755184234225,-200.0,0.0002607,2]
[379196742,1755184234234,-1000.0,0.0002607,2]
[379196743,1755184234244,-200.0,0.0002607,2]
[379196744,1755184234254,-1000.0,0.0002607,2]
[379196745,1755184234267,-200.0,0.0002607,2]
[379196746,1755184234276,-657.54985108,0.0002607,2]
[379196747,1755184234286,-200.0,0.0002607,2]
[379196748,1755184234296,-2814.93625017,0.0002607,2]
[379196749,1755184234306,-200.0,0.0002607,2]
[379196750,1755184234315,-200.0,0.0002607,2]
[379196751,1755184234325,-200.0,0.0002607,2]
[379196752,1755184234334,-200.0,0.0002607,2]
[379196753,1755184234344,-2000.0,0.0002607,2]
[379196754,1755184234354,-200.0,0.0002607,2]
[379196755,1755184234363,-151.0,0.0002607,2]
[379196756,1755184234372,-200.0,0.0002607,2]
[379196757,1755184234382,-200.0,0.0002607,2]
[379196758,1755184234392,-200.0,0.0002607,2]
[379196759,1755184234406,-200.0,0.0002607,2]
[379196760,1755184234417,-200.0,0.0002607,2]
[379196761,1755184234427,-200.0,0.0002607,2]
[379196762,1755184234438,-500.0,0.0002607,2]
[379196763,1755184234448,-500.0,0.0002607,2]
[379196764,1755184234459,-200.0,0.0002607,2]
[379196765,1755184234469,-500.0,0.0002607,2]
[379196766,1755184234479,-500.0,0.0002607,2]
[379196767,1755184234489,-500.0,0.0002607,2]
[379196768,1755184234500,-500.0,0.0002607,2]
[379196769,1755184234511,-500.0,0.0002607,2]
[379196770,1755184234521,-189.15254072,0.0002607,2]
[379196771,1755184234531,-277.35679052,0.0002607,2]
[379196772,1755184234541,-3367.31054796,0.0002607,2]
[379196773,1755184234550,-500.0,0.0002607,2]
[379196774,1755184234559,-500.0,0.0002607,2]
[379196775,1755184234569,-500.0,0.0002607,2]
[379196776,1755184234579,-500.0,0.0002607,2]
[379196777,1755184234588,-500.0,0.0002607,2]
[379196778,1755184234598,-581.90346692,0.0002607,2]
[379196779,1755184234608,-151.0,0.0002607,2]
[379196780,1755184234619,-500.0,0.0002607,2]
[379196781,1755184234629,-500.0,0.0002607,2]
[379196782,1755184234638,-500.0,0.0002607,2]
[379196783,1755184234648,-500.0,0.0002607,2]
[379196784,1755184234662,-500.0,0.0002607,2]
[379196785,1755184234673,-500.0,0.0002607,2]
[379196786,1755184234684,-500.0,0.0002607,2]
[379196787,1755184234694,-500.0,0.0002607,2]
[379196788,1755184234704,-500.0,0.0002607,2]
[379196789,1755184234714,-500.0,0.0002607,2]
[379196790,1755184234724,-500.0,0.0002607,2]
[379196791,1755184234734,-357.0,0.00026098,7]
[379196792,1755184234744,-877.95760362,0.00026116,2]
[379196793,1755184234755,-167.22,0.00026136,2]
[379196794,1755184234765,-8658.58301686,0.00026153,2]
[379196795,1755184234775,-927.32068174,0.00026228,2]
[379196796,1755184234785,-780.0,0.0002633,2]
[379196797,1755184234795,-976.68375985,0.00026341,2]
[379196798,1755184234805,-4482.9311,0.00026387,2]
[379196799,1755184234814,-230.7578,0.00026387,2]
[379196800,1755184234824,-275.4384,0.00026387,2]
[379196801,1755184234834,-150.0,0.00026391,2]
[379196802,1755184234846,-150.0,0.00026395,2]
[379196803,1755184234855,-150.0,0.00026407,2]
[379196804,1755184234864,-464.04744435,0.00026412,2]
[379196805,1755184234875,-163.96,0.00026447,2]
[379196806,1755184234885,-1026.04683797,0.00026453,2]
[379196807,1755184234894,-357.0,0.00026466,7]
[379196808,1755184234908,-150.0,0.00026526,2]
[379196809,1755184234918,-150.0,0.0002654,2]
[379196810,1755184234928,-150.0,0.00026542,2]
[379196811,1755184234939,-153.78957066,0.00026564,2]
[379196812,1755184234949,-1075.40991608,0.00026565,2]
[379196813,1755184234959,-7557.56,0.00026591,2]
[379196814,1755184234969,-600.0,0.00026618,2]
[379196815,1755184234980,-151.0,0.00026618,2]
[379196816,1755184234990,-151.0,0.00026618,2]
[379196817,1755184235000,-150.0,0.0002664,2]
[379196818,1755184235010,-150.0,0.00026674,2]
[379196819,1755184235020,-218.76,0.00026676,2]
[379196820,1755184235030,-502.0,0.00026677,5]
[379196821,1755184235040,-1124.7729942,0.00026678,2]
[379196822,1755184235050,-290.0,0.00026685,2]
[379196823,1755184235060,-150.0,0.00026697,2]
[379196824,1755184235069,-150.0,0.00026697,2]
[379196825,1755184235080,-150.0,0.00026699,2]
[379196826,1755184235090,-1500.0,0.000267,2]
[379196827,1755184235100,-4200.17520171,0.000267,2]
[379196828,1755184235110,-1000.0,0.000267,2]
[379196829,1755184235120,-2500.0,0.000267,2]
[379196830,1755184235129,-150.0,0.00026729,2]
[379196831,1755184235139,-150.0,0.0002675,2]
[379196832,1755184235149,-150.0,0.00026752,2]
[379196833,1755184235165,-150.0,0.00026778,2]
[379196834,1755184235175,-4200.17520165,0.00026782,2]
[379196835,1755184235185,-1174.13607231,0.0002679,2]
[379196836,1755184235196,-25443.7825241,0.0002679,2]
[379196837,1755184235205,-577.88132518,0.00026798,2]
[379196838,1755184235215,-150.0,0.00026799,2]
[379196839,1755184235224,-91696.9618489,0.000268,2]
[379196840,1755184235239,-4141.3456,0.000268,2]
[379196841,1755184235251,-1832.47214462,0.000268,2]
[379196842,1755184235321,-74592.05574373,0.000268,2]
[379196857,1755184238606,-181.9715038,0.00024137,2]
[379196859,1755184238616,-151.0,0.00025222,2]
[379196861,1755184238625,-150.0,0.00025767,2]
[379196863,1755184238634,-150.0,0.00025922,2]
[379196865,1755184238644,-150.0,0.00026464,2]
[379196867,1755184238656,-2496.5790802,0.000268,2]
[379196881,1755184238761,-360.80941672,0.000268,2]
[379197057,1755184240349,-150.0,0.00025296,2]
[379197059,1755184240358,-667.72278093,0.000268,2]
[379197076,1755184240476,-424.87184519,0.000268,2]
[379197079,1755184240499,-11766.67288215,0.000268,2]
[379197112,1755184240961,-1571.65140229,0.000268,2]
[379197113,1755184240973,-758.98725527,0.000268,2]
[379197114,1755184240982,-1000.0,0.000268,2]
[379197115,1755184240992,-268.62162957,0.000268,2]
[379197116,1755184241049,-699.72121019,0.000268,2]
[379197117,1755184241065,-1263.45825904,0.000268,2]
[379197146,1755184246468,-900.07635785,0.000268,2]
[379197153,1755184246629,-4545.91845642,0.000268,2]
[379197158,1755184246676,-4661.59999999,0.000268,2]
[379197160,1755184246688,-22192.65528694,0.000268,2]
[379197162,1755184246698,-151.0,0.000268,2]
[379197164,1755184246708,-150.0,0.00026818,2]
[379197166,1755184246718,-925.3101219,0.00026832,2]
[379197168,1755184246727,-6360.94563103,0.00026839,2]
[379197170,1755184246737,-163.257615,0.00026847,2]
[379197173,1755184246747,-2963.8,0.00026849,14]
[379197175,1755184246759,-332.14,0.00026854,7]
[379197176,1755184246768,-150.0,0.00026856,2]
[379197177,1755184246778,-150.0,0.00026857,2]
[379197178,1755184246788,-4200.17520165,0.00026863,2]
[379197179,1755184246797,-150.0,0.00026876,2]
[379197180,1755184246807,-2803.0,0.0002688,2]
[379197181,1755184246818,-6360.94563103,0.0002688,2]
[379197182,1755184246827,-3608.18602141,0.0002689,2]
[379197183,1755184246840,-1391.81397859,0.0002689,2]
[379197185,1755184246850,-150.0,0.00026901,2]
[379197186,1755184246859,-150.0,0.00026906,2]
[379197187,1755184246869,-150.0,0.00026922,2]
[379197188,1755184246879,-150.0,0.00026926,2]
[379197189,1755184246889,-150.0,0.00026928,2]
[379197190,1755184246899,-150.0,0.00026929,2]
[379197191,1755184246912,-150.0,0.0002694,2]
[379197192,1755184246923,-4200.17520165,0.00026945,2]
[379197193,1755184246933,-977.3355906,0.00026947,2]
[379197194,1755184246943,-150.0,0.00026947,2]
[379197195,1755184246952,-577.88132518,0.00026957,2]
[379197197,1755184246964,-150.0,0.00026961,2]
[379197199,1755184246974,-150.0,0.00026966,2]
[379197201,1755184246984,-150.0,0.00026976,2]
[379197203,1755184246994,-150.0,0.0002698,2]
[379197205,1755184247004,-150.0,0.00026983,2]
[379197207,1755184247015,-300.0,0.00026986,2]
[379197209,1755184247025,-6360.94563103,0.00026989,2]
[379197211,1755184247035,-150.0,0.00026993,2]
[379197261,1755184247520,-150.0,0.00026994,2]
[379197264,1755184247542,-280.70993972,0.00026999,2]
[379197266,1755184247552,-1000.0,0.00027,27]
[379197268,1755184247562,-150.0,0.00027003,2]
[379197270,1755184247571,-150.0,0.00027014,2]
[379197272,1755184247581,-4200.17520165,0.00027026,2]
[379197275,1755184247591,-577.88132518,0.00027036,2]
[379197276,1755184247601,-150.0,0.00027046,2]
[379197277,1755184247611,-163.25761496,0.00027047,2]
[379197278,1755184247620,-150.0,0.00027059,2]
[379197279,1755184247630,-905.24384941,0.00027062,2]
[379197285,1755184314820,-5000000.0,0.00039395,30]
[379197286,1755184321254,-5000000.0,0.00039395,30]
[379197287,1755184329718,-5000000.0,0.00039395,30]
[379197288,1755184336894,-5000000.0,0.00039395,30]
[379197289,1755184347440,250.0,0.00015,2]
[379197291,1755184360566,155.0,0.00030136,120]
[379197293,1755184374478,155.0,0.00025999,30]
[379197296,1755184387628,185.94,0.00013699,2]
[379197301,1755184515054,1099.99,0.00030136,120]
[379197306,1755184554675,213.0,0.00026,30]
[379197309,1755184665804,799.58,0.00025746,30]
[379197317,1755184790965,324.71,0.00025649,120]
[379197318,1755184791375,324.71,0.00028855,120]
[379197340,1755185126122,7569.87079498,0.000175,2]
[379197342,1755185143567,-300.0,0.00019,2]
[379197343,1755185147975,2980.970082,0.0001995,15]
[379197345,1755185149575,2000.0,0.00026,30]
[379197346,1755185155237,27294.14184423,0.00025,30]
[379197347,1755185159157,-500.0,0.00019,2]
[379197348,1755185166538,187.64555229,0.00015,2]
[379197351,1755185233427,5612.7105475,0.00015,2]
[379197352,1755185235744,205.0,9.8e-05,2]
[379197353,1755185240374,5239.55882155,0.0001305,2]
[379197354,1755185244735,300.0,0.00030137,120]
[379197356,1755185252770,456.15652038,0.00016,2]
[379197357,1755185268275,1756.79715424,0.00030137,120]
[379197358,1755185271940,472.29017188,0.00013,2]
[379197359,1755185278429,200.0,0.000195,3]
[379197361,1755185291981,8019.34937315,0.0001439,2]
[379197362,1755185299108,298.24,0.00013699,2]
[379197377,1755185330850,234.0,0.00027387,120]
[379197378,1755185331162,234.0,0.00027377,120]
[379197379,1755185331412,234.0,0.00027367,120]
[379197381,1755185331646,234.0,0.00027661,120]
[379197383,1755185331773,234.0,0.00027651,120]
[379197384,1755185331946,234.0,0.00027641,120]
[379197385,1755185332074,234.0,0.00027935,120]
[379197386,1755185332281,234.0,0.00027925,120]
[379197387,1755185332569,234.0,0.00028209,120]
[379197388,1755185332832,237.0,0.00028199,120]
[379197389,1755185365457,156.92221539,0.00027397,120]
[379197390,1755185370100,150.0,0.00024,120]
[379197393,1755185390691,-300.0,0.00018998,2]
[379197394,1755185390718,-1000.0,0.00018999,2]
[379197395,1755185390747,-206.45368718,0.00018999,2]
[379197396,1755185390775,-462.20059575,0.00018999,2]
[379197397,1755185390801,-158.4082429,0.00018999,2]
[379197398,1755185390831,-500.0,0.00018999,2]
[379197399,1755185390858,-441.5888158,0.00018999,2]
[379197400,1755185390886,-36931.34865837,0.00019,2]
[379197401,1755185430592,216.0,0.00030136,120]
[379197421,1755185432921,-500.0,0.000189,2]
[379197423,1755185432931,-1200.0,0.00018998,2]
[379197425,1755185432940,-300.0,0.00018999,2]
[379197427,1755185432949,-224.0,0.00018999,2]
[379197430,1755185432959,-144.366,0.00018999,2]
[379197433,1755185432977,-105.634,0.00018999,2]
[379197434,1755185432987,-1000.0,0.00018999,2]
[379197436,1755185432996,-8776.39269624,0.00019,2]
[379197439,1755185433007,-318038.31859285,0.00019,2]
[379197442,1755185433032,-17557.0396982,0.00019,2]
[379197445,1755185433043,-129819.72467413,0.00019,2]
[379197447,1755185433055,-84596.45026673,0.00019,2]
[379197449,1755185433071,-687.550864,0.00019,2]
[379197453,1755185433096,-12121.16050514,0.00019,2]
[379197662,1755185438574,-62252.79609904,0.00019,2]
[379197663,1755185438584,-374.88846551,0.00019,2]
[379197664,1755185438593,-4894.543711,0.00019,2]
[379197665,1755185438603,-7962.9750933,0.00019358,2]
[379197666,1755185438612,-250.0,0.00019372,2]
[379197667,1755185438624,-1000.0,0.00019372,2]
[379197668,1755185438633,-500.0,0.0001949,2]
[379197669,1755185438643,-282.24889249,0.0001988,2]
[379197670,1755185438653,-480.34015393,0.0001998,2]
[379197671,1755185438663,-5315.52766781,0.0002,2]
[379197672,1755185438672,-1343.7581766,0.0002,2]
[379197673,1755185438684,-1545.57944321,0.0002,2]
[379197674,1755185438695,-3114.10482308,0.0002,2]
[379197675,1755185438706,-500.0,0.00020013,2]
[379197676,1755185438715,-298.24,0.00020187,2]
[379197677,1755185438724,-420.0,0.00020709,2]
[379197678,1755185438734,-282.24889243,0.0002076,2]
[379197679,1755185438743,-1680.0,0.00020808,2]
[379197680,1755185438752,-250.0,0.00020899,2]
[379197681,1755185438761,-1000.0,0.00020899,2]
[379197683,1755185438770,-300.0,0.00020899,2]
[379197685,1755185438780,-500.0,0.000209,2]